Cogmind - Beta 16 @@@ ROGUE MODE // 2026.01.01 @ 13:01:17 Player: rootmos Result: Destroyed by G-47 Trooper with Particle Gun Performance ------------- Evolutions (0) 0 Regions Visited (1) 200 Robots Destroyed (13) 65 Value Destroyed (360) 360 Prototype IDs (0) 0 Alien Tech Used (0) 0 Bonus (0) 0 TOTAL SCORE: 625 Bonus ------- None Cogmind --------- Core Integrity 0/250 Matter 278/300 Energy 250/250 System Corruption 0% Temperature Cool (9) Movement Walking (120) Location -10/Materials Parts ------- > --- POWER (1) -------- Ion Engine > --- PROPULSION (2) --- Aluminum Leg Aluminum Leg > --- UTILITY (2) ------ Improved Heat Sink Small Storage Unit > --- WEAPON (2) ------- Small Laser Assault Rifle > --- INVENTORY (8) ---- Ion Engine Aluminum Leg Aluminum Leg Aluminum Leg Small Storage Unit Signal Interpreter Terrain Scanner EMP Blaster Peak State ------------ > --- POWER ------------ Ion Engine > --- PROPULSION ------- Aluminum Leg Aluminum Leg > --- UTILITY ---------- Improved Heat Sink Small Storage Unit > --- WEAPON ----------- Medium Laser Assault Rifle > --- INVENTORY -------- Ion Engine Aluminum Leg Aluminum Leg Aluminum Leg Small Storage Unit Signal Interpreter Terrain Scanner EMP Blaster [Rating: 9] Favorites ----------- Power Ion Engine Engine Ion Engine Propulsion Aluminum Leg Leg Aluminum Leg Utility Small Storage Unit Device Heat Sink Storage Small Storage Unit Weapon Medium Laser Energy Gun Medium Laser Ballistic Gun Assault Rifle Ballistic Cannon Light Cannon Launcher EMP Blaster Build | -11 -10 ------- Run | Yrd Mat Slots Evolved . | . . Power . | . . Propulsion . | . . Utility . | . . Weapon . | . . Parts Attached 16 | . 16 Power 4 | . 4 Engine 4 | . 4 Core . | . . Reactor . | . . Propulsion 4 | . 4 Treads . | . . Leg 4 | . 4 Wheel . | . . Hover . | . . Flight . | . . Utility 3 | . 3 Device 3 | . 3 Storage . | . . Processor . | . . Hackware . | . . Protection . | . . Artifact . | . . Weapon 5 | . 5 Energy Gun 2 | . 2 Energy Cannon . | . . Ballistic Gun 1 | . 1 Ballistic Cannon 1 | . 1 Launcher 1 | . 1 Special Weapon . | . . Impact Weapon . | . . Slashing Weapon . | . . Piercing Weapon . | . . Special Melee Weapon . | . . Unidentified Prototypes . | . . Parts Lost 2 | . 2 Power 1 | . 1 Propulsion . | . . Utility . | . . Weapon 1 | . 1 Highest Loss Streak 1 | . 1 To Critical Strikes . | . . Average Backups 6 | . 6 Power . | . . Propulsion 2 | . 2 Utility 2 | . 2 Weapon 1 | . 1 Tool/Special . | . . Unused Backups 16 | . 16 Power 1 | . 1 Propulsion 8 | . 8 Utility 3 | . 3 Weapon 4 | . 4 Tool/Special . | . . Average Slot Usage (%) 98 | . 98 Engine 13 | . 13 Leg 27 | . 27 Device 13 | . 13 Storage 14 | . 14 Energy Gun 12 | . 12 Ballistic Gun 4 | . 4 Ballistic Cannon 9 | . 9 Launcher 1 | . 1 Peak Build Rating 9 | . 9 Average Rating 7 | . 7 On Entrance 6 | 6 6 Avg Prop Armor Cover (%) . | . . Naked Turns . | . . Heaviest Build 16 | 11 16 Greatest Support 20 | 20 20 Greatest Overweight (x) 1 | . 1 Average Overweight (x) . | . . Largest Inventory Capacity 8 | . 8 Average Capacity 8 | . 8 Most Carried 8 | . 8 Average Carried 6 | . 6 Final Capacity 8 | 8 8 Final Carried 8 | 6 8 Class Distribution -------------------- 75% | Mutant 24% | Scavenger-Mutant Dominant Class ---------------- Mutant | -10/Materials Resources | -11 -10 ----------- Run | Yrd Mat Matter Collected 511 | 200 311 Remotely . | . . Salvage Created 370 | . 370 Parts 21 | . 21 Haulers Intercepted . | . . Recyclers Shooed 1 | . 1 Parts Field Recycled . | . . Retrieved Matter . | . . Parts Self-Destructed . | . . Prevented . | . . Parts Restored . | . . Kills | -11 -10 ------- Run | Yrd Mat Combat Hostiles Destroyed 12 | . 12 Guns 5 | . 5 Cannons 5 | . 5 AOE 2 | . 2 Classes Destroyed 3 | . 3 Worker 1 | . 1 Swarmer 3 | . 3 Grunt 9 | . 9 Best Kill Streak 2 | . 2 Combat Bots Only 2 | . 2 Max Kills in Single Turn 1 | . 1 Gunslinging . | . . Exploded 1 | . 1 Melee . | . . Uniques/NPCs Destroyed . | . . Combat | -11 -10 -------- Run | Yrd Mat Hostile Shots Fired 103 | . 103 Missed 33 | . 33 Hits 70 | . 70 Projectile 70 | . 70 Critical Strikes 1 | . 1 Damage Taken 836 | . 836 Core 253 | . 253 Absorbed by Shields . | . . Core Remaining (%) 100 | 100 . Volleys Fired 43 | . 43 Largest 2 | . 2 Hottest 80 | . 80 Shots Fired 86 | . 86 Gun 55 | . 55 Cannon 29 | . 29 Launcher 2 | . 2 Special . | . . Kinetic 43 | . 43 Thermal 41 | . 41 Explosive . | . . Electromagnetic 2 | . 2 Robot Hit Streak 10 | . 10 Robot Miss Streak 3 | . 3 Penetration Max . | . . Secondary Targets . | . . Shots Hit Robots 57 | . 57 Core Hits 22 | . 22 Critical Kills . | . . Critical Parts Destroyed . | . . Critical Strikes 6 | . 6 Burn 5 | . 5 Blast 1 | . 1 Melee Attacks . | . . Impact . | . . Slashing . | . . Piercing . | . . Sneak Attacks . | . . Combat Hostiles . | . . Follow-up Attacks . | . . Damage Inflicted 928 | . 928 Guns 489 | . 489 Cannons 372 | . 372 Explosions 65 | . 65 Melee . | . . Ramming 2 | . 2 Kinetic 494 | . 494 Thermal 367 | . 367 Explosive . | . . Electromagnetic 65 | . 65 Impact . | . . Slashing . | . . Piercing . | . . Highest Corruption . | . . Average Corruption . | . . Corruption Purged . | . . Corruption Blocked . | . . Overload Shots . | . . Overflow Damage . | . . Projectiles . | . . Explosions . | . . Melee . | . . Knockbacks 8 | . 8 Impact . | . . Kinetic 8 | . 8 Secondary . | . . Self-Inflicted Damage . | . . Shots . | . . Rammed . | . . Targets Rammed 1 | . 1 Kicked 1 | . 1 Crushed . | . . Highest Temperature 126 | . 126 Average Temperature 25 | . 25 Received Heat Transfer 456 | . 456 Siege Activations . | . . Martial Activations . | . . Shielding Activations . | . . Robots Disrupted . | . . Combat Hostiles . | . . Robots Corrupted . | . . Combat Hostiles . | . . Parts Fried . | . . Impact Corruptions . | . . Robots Melted . | . . Combat Hostiles . | . . Parts Melted . | . . Heat Transferred 1444 | . 1444 Parts Sabotaged . | . . Parts Stolen . | . . Parts Stripped . | . . Power Chain Reactions . | . . Alert | -11 -10 ------- Run | Yrd Mat Maximum Alert Level . | . . Low Security (%) 100 | . 100 Level 1 . | . . Level 2 . | . . Level 3 . | . . Level 4 . | . . Level 5 . | . . High Security . | . . Max Security . | . . Peak Influence 126 | . 126 Initial . | . . Average 66 | . 66 Influence Increases 338 | . 338 Destroy 0b10 Robot/C 240 | . 240 Destroy 0b10 Robot/NC 5 | . 5 Destroy Leader 40 | . 40 Successful Hack 7 | . 7 Disable Machine 15 | . 15 Destroy Structure 1 | . 1 Lose Combat Pursuer 30 | . 30 Influence Decreases 240 | . 240 Time Decay 220 | . 220 Lost Part 20 | . 20 Squads Dispatched 2 | . 2 Investigation . | . . Extermination . | . . Reinforcement 2 | . 2 Assault . | . . Garrison . | . . Intercept . | . . Searches Triggered . | . . Construction Impeded . | . . Haulers Reinforced . | . . Active Scanning Responses . | . . Cargo Convoy Interrupts . | . . Stealth | -11 -10 --------- Run | Yrd Mat Distress Signals 3 | . 3 Communications Jammed . | . . Distress Signals . | . . Times Spotted 19 | . 19 Peak Tracking Total 4 | . 4 Tactical Retreats 2 | . 2 Traps | -11 -10 ------- Run | Yrd Mat Traps Triggered . | . . Indirectly . | . . Trap Hack Attempts . | . . Triggered . | . . Disarmed . | . . Reprogrammed . | . . Reused . | . . Traps Extracted . | . . Installed . | . . Triggered . | . . Machines | -11 -10 ---------- Run | Yrd Mat Machines Disabled 1 | . 1 Max in Single Turn 1 | . 1 Machines Repaired . | . . Machines Dismantled . | . . Machines Sabotaged . | . . Overloaded Fab Kills . | . . Hacking | -11 -10 --------- Run | Yrd Mat Machines Accessed 1 | . 1 Terminals 1 | . 1 Fabricators . | . . Repair Stations . | . . Recycling Units . | . . Scanalyzers . | . . Garrison Access . | . . Total Hacks 3 | . 3 Successful 2 | . 2 Failed 1 | . 1 Catastrophic . | . . Database Lockouts . | . . Manual 2 | . 2 Terminals 3 | . 3 Fabricators . | . . Repair Stations . | . . Recycling Units . | . . Scanalyzers . | . . Garrison Access . | . . Terminal Hacks 2 | . 2 Record 2 | . 2 Fabricator Hacks . | . . Repair Station Hacks . | . . Recycling Unit Hacks . | . . Scanalyzer . | . . Garrison Access Hacks . | . . Unauthorized Hacks . | . . Terminals . | . . Fabricators . | . . Repair Stations . | . . Recycling Units . | . . Scanalyzers . | . . Garrison Access . | . . Data Cores Recovered . | . . Used . | . . Hacking Detections 1 | . 1 Full Trace Events 1 | . 1 Feedback Events . | . . Feedback Blocked . | . . Robot Schematics Acquired . | . . Robots Built . | . . Authchips . | . . Time . | . . Total Robot Build Rating . | . . Part Schematics Acquired . | . . Parts Built . | . . Authchips . | . . Time . | . . Total Part Build Rating . | . . Part Studies Acquired . | . . Parts Repaired . | . . Time . | . . Parts Recycled . | . . Recycled Matter . | . . Retrieved Matter . | . . Retrieved Components . | . . Parts Scanalyzed . | . . Part Schematics Acquired . | . . Parts Damaged . | . . Bothacking | -11 -10 ------------ Run | Yrd Mat Used RIF Installer . | . . Robots Hacked . | . . Non-combat . | . . Combat . | . . Robot Hacks Applied . | . . Relay Couplers Released . | . . Fabnet Peak Effective % . | . . Robots Rewired . | . . Allies Hacked . | . . Hacks Repelled . | . . Allies | -11 -10 -------- Run | Yrd Mat Total Allies . | . . Largest Group . | . . Highest-Rated Group . | . . Highest-Rated Ally . | . . Total Orders . | . . Ally Attacks . | . . Total Damage . | . . Kills . | . . Allies Corrupted . | . . Allies Melted . | . . Intel | -11 -10 ------- Run | Yrd Mat Active Infowar (turns) 168 | . 168 Terrain 168 | . 168 Robot Analysis Total . | . . Derelict Logs Recovered . | . . Drone Launches . | . . Drone Recoveries . | . . Exploration | -11 -10 ------------- Run | Yrd Mat Turns Passed 597 | . 597 Spaces Moved 287 | 1 286 Core . | . . Treads . | . . Legs 287 | 1 286 Wheels . | . . Hover . | . . Flight . | . . Fastest Speed 120 | 120 120 Average Speed 122 | 120 122 Slowest Speed 190 | 120 190 Overloaded Moves . | . . Propulsion Burnouts . | . . Robots Hopped . | . . Potential Cave-ins . | . . Cave-ins Triggered . | . . Exploration Rate (%) 18 | 2 35 Regions Visited 1 Branch Regions . Pre-discovered Areas . | . . Known Exits Taken . | . . Unknown Exits Taken 1 | 1 . Scrap Searched . | . . Spaces Dug . | . . Terrain Destroyed . | . . Melee . | . . Projectile . | . . AOE . | . . Terrain Rammed . | . . Walls Destroyed . | . . Machines Disabled . | . . Actions | -11 -10 --------- Run | Yrd Mat Total 453 | . 453 Wait 79 | . 79 Move 286 | . 286 Hop . | . . Pick Up 10 | . 10 Fast Attach 1 | . 1 Attach 4 | . 4 Detach 2 | . 2 Swap 13 | . 13 Drop 14 | . 14 Fire 43 | . 43 Melee . | . . Ram . | . . Kick 1 | . 1 Crush . | . . Escape Stasis . | . . Rewire . | . . Trap . | . . Miscellaneous . | . . Route ------- -11/Scrapyard -10/Materials (discovered 1 exit: [*Min]) History --------- Turn | Location | Event 1 | -11/Scrapyard | Discovered new exit (range 0) 1 | -11/Scrapyard | Entered Materials 299 | -10/Materials | Core integrity fell below 50% 321 | -10/Materials | Build established: Mutant 323 | -10/Materials | Discovered new exit (range 16) 467 | -10/Materials | Core integrity fell below 20% 598 | -10/Materials | Destroyed by G-47 Trooper with Particle Gun Last Messages --------------- 00493_ Dropped Heat Sink. 00497_ Acquired 19 matter. 00545_ K-01 Serf collects debris. 00555_ K-01 Serf cleans the Atomic Centrifuge. 00555_ W-16 Scout sends out distress signal. 00560_ K-01 Serf collects debris. 00562_ K-01 Serf cleans the Atomic Centrifuge. 00567_ K-01 Serf collects debris. 00568_ G-34 Mercenary suffers critical hit (Burn). 00570_ K-01 Serf cleans the Atomic Centrifuge. 00571_ G-34 Mercenary destroyed. 00572_ K-01 Serf cleans the Atomic Centrifuge. 00574_ K-01 Serf collects debris. 00575_ Dropped Med. Laser. 00579_ Acquired 16 matter. 00581_ K-01 Serf collects debris. 00583_ Dropped Ion Engine. 00591_ R-06 Scavenger collects Aluminum Leg. 00594_ Critical hit (Burn: +37). Map ----- +----------------------------------------------------+ | ????????????????????????????????????????????# | | ????????????????????????????????????????????# < | | ????????????????????????????????????????????? | | ?????????????????????????????????????######## | | ?????????????????????????????????????# #? | | ?????????????????????????????????????# #?# | | ?????????????????????????????????????# """ "#?# | | ?????????????????????????????????????# """=T#?# | | ?????????????????????????????????????# """ "#?# | | ????????????????????? ?????????????# [!### ^^ | | ????????????????????# ?????????????######+## ^^ | | ????????????????????# ?????????######## =% | | ????????????????????# ?????????# # %% | | ????????????????????# ?????????# T # ! | | ????????????????????# ?????????# # ## | | ????????????????????# ?????????# # ### | | ????????????????????# #????????# + #?# | | ????????????????????+ /????????# ! # #?# | | ????????????????????# #????????###+#### ### | | ????????????????????# #?????????## ### ##[ * | | ????????????????????# #?????????# # =% | | ????????????????????# ########??# # | | ????????????????????# # #??# # | | ????????????????????# #! """ #??# ## # = | | ????????????????????+ %g[ """ #??# ######## | | ????????????????????# #@ """ #??# #??????### # | | ????????????????????# # ! #### #????????# # | | ????????????????????# # + ##???????# # | | ????????????????????# ############+#####???#?# # | | ????????????????????# #????????# #?????# # | | ????????????????????# #????????#""" #?????# # | | ????????????????????+ #????????#""" #?????# # | | ????????????????????# #????????#""" #??#?## # | | ????????????????????# ?????????#""" #????##[# | | ????????????????????# ?????????#""" #?#??## # | | ????????????????????# ?????????# #######=# | | ????????????????????# ?????????# ## %* | | ????????????????????# ?????????# ## | | ????????????????????# ?????????# ## | | ????????????????????? ?????????# ## | | ?????????????????????????????????########## | | ??????????????????????????????????????????# | | ?????????????????????????????????????????## | | ??????????????????????????????????????????# | | ?????????????????????????????????????????## | | ?????????????????????????????????????????#######+# | | ???????????????????????????????????#?#??#?# | | ??????????????????????????????????######### | | ??????????????????????????????????? # """ | | ???????????????????????????????????"""" # """ | +----------------------------------------------------+ Best States ------------- Heat Dissipation 39 Energy Generation 10 Energy Capacity 250 Matter Stores 300 Matter Capacity 300 Sight Range 16 Terrain Scan Range 14 Terrain Scan Density 10 Evasion (%) 55 Item Schematics ----------------- None Robot Schematics ------------------ None Fabricated ------------ Nothing Repaired ---------- Nothing Studied --------- None Alien Tech Used ----------------- None Achievements -------------- None Challenges ------------ None Game ------ Seed DimensionalTerrorScreen Manual? 0 Play Time 00:12:05 Cumulative 95.9 hours Start 2025.12.28 @ 00:11:46 End 2026.01.01 @ 13:01:17 Sessions 8 Manual Loads 0 Difficulty Rogue Special Mode None Game No. 42 Rogue 7 Adventurer 0 Explorer 35 Win Type - Total 1 Types 1/0/0/0/0/0/0/0/0/0 Lore% 29 Gallery% 34 Achievement% 27 Wizard Run 0 Options --------- Layout 0 ASCII 1 Keyboard 1 Movement Vi Keybinds 1 Fullscreen 0 Font 20/SmallcapsGlow Map View 50x62 Zoom Use 0% Tactical HUD 1 Map Filters NONE Filters NONE Steam 0 RUN: 52361e2c-0497-44f4-8634-d72f812a456c